Workbook

Sheet Sines
B1: Exploring Rose Curves
B3: This graphing utility produces the graph
B4: of the rose curves in polar form
C5: r = a*sin(nQ)
B6: on the interval from Q = 0 to Q = 2p.
A9: What is the value of a (from 1 to 5)?
C10: 9 | F10: =1+C10/4 -> 3.25
A13: What is the value of n (from 1 to 10)?
C14: 15 | F14: =1+C14/5 -> 4.00
I18: Graph of the rose curve r = | M18: =TEXT(a,"0.00") & " sin(" & TEXT(n,"0.00") & " Q)" -> 3.25 sin(4.00 Q)
A19: Click each item below for suggestions and investigations
B20: Item 1
B21: Item 2 | I21: Now trace along the cardioid:
B22: Item 3 | I22: Q = | J22: =K22*Calcs!B12 -> 2.75 | K22: 88
B23: Item 4 | I23: r = | J23: =LOOKUP(J22,Calcs!C3:C204,Calcs!D3:D204) -> -3.23
A27: To access/download all the DIGMath Apps for Calculus
A28: Click this link: | C28: DIGMath for Calculus
A30: Created by: Sheldon P. Gordon
A31: Farmingdale State College
A32: Development of this module was supported by the
A33: NSF's Division of Undergraduate Education
A34: under grants DUE-0310123 and DUE-0442160.

Sheet Cosines
B1: Exploring Rose Curves
B3: This graphing utility produces the graph
B4: of the rose curves in polar form
C5: r = a*cos(nQ)
B6: on the interval from Q = 0 to Q = 2p.
A9: What is the value of a (from 1 to 5)?
C10: 10 | F10: =1+C10/4 -> 3.50
A13: What is the value of n (from 1 to 10)?
C14: 15 | F14: =1+C14/5 -> 4.00
I18: Graph of the rose curve r = | M18: =TEXT(aa,"0.00") & " cos(" & TEXT(nn,"0.00") & " Q)" -> 3.50 cos(4.00 Q)
A19: Click each item below for suggestions and investigations
B20: Item 1
B21: Item 2 | I21: Now trace along the rose curve:
B22: Item 3 | I22: Q = | J22: =K22*Calcs!B12 -> 1.63 | K22: 52
B23: Item 4 | I23: r = | J23: =LOOKUP(J22,Calcs!K3:K204,Calcs!L3:L204) -> 3.48
A26: To access/download all the DIGMath Apps for Calculus
A27: Click this link: | C27: DIGMath for Calculus
A29: Created by: Sheldon P. Gordon & Florence S. Gordon
A30: Farmingdale State College NYIT
A31: Development of this module was supported by the
A32: NSF's Division of Undergraduate Education
A33: under grants DUE-0310123 and DUE-0442160.

Sheet Calcs
C1: Q | D1: r = f(Q) | E1: x | F1: y | H1: Tracing point -- sine | K1: Q | L1: r = f(Q) | M1: x | N1: y
C3: 0 | D3: =a*SIN(n*Q) -> 0 | E3: =D3*COS(C3) -> 0 | F3: =D3*SIN(C3) -> 0 | H3: 0 | I3: 0 | K3: 0 | L3: =aa*COS(nn*QQ) -> 3.5 | M3: =L3*COS(K3) -> 3.5 | N3: =L3*SIN(K3) -> 0
C4: =C3+Calcs!B$12 -> 0.03125962839 | D4: 0.4053170757 | E4: =D4*COS(C4) -> 0.4051190611 | F4: =D4*SIN(C4) -> 0.01266799781 | H4: =LOOKUP(Sines!$J$22,Calcs!C3:C204,E3:E204) -> 2.944528627 | I4: =LOOKUP(Sines!J22,Calcs!C3:C204,F3:F204) -> -1.322033096 | K4: =K3+Calcs!B$12 -> 0.03125962839 | L4: 3.472675027 | M4: =L4*COS(K4) -> 3.470978478 | N4: =L4*SIN(K4) -> 0.1085368525
C5: =C4+Calcs!B$12 -> 0.06251925679 | D5: 0.804305421 | E5: 0.8027340558 | F5: 0.05025182602 | K5: =K4+Calcs!B$12 -> 0.06251925679 | L5: 3.391126767 | M5: 3.384501549 | N5: 0.2118726393
C6: =C5+Calcs!B$12 -> 0.09377888518 | D6: 1.190735124 | E6: 1.185503013 | F6: 0.1115022107 | K6: =K5+Calcs!B$12 -> 0.09377888518 | L6: 3.256628537 | M6: 3.242318853 | N6: 0.3049555471
C7: =C6+Calcs!B$12 -> 0.1250385136 | D7: 1.558572367 | E7: 1.546404382 | F7: 0.194374152 | H7: Start line: | K7: =K6+Calcs!B$12 -> 0.1250385136 | L7: 3.071280429 | M7: 3.047302527 | N7: 0.3830284314
C8: =C7+Calcs!B$12 -> 0.156298142 | D8: 1.90207364 | E8: 1.878887915 | F8: 0.2960816294 | H8: 0 | I8: 0 | K8: =K7+Calcs!B$12 -> 0.156298142 | L8: 2.837976517 | M8: 2.80338241 | N8: 0.4417666561
C9: =C8+Calcs!B$12 -> 0.1875577704 | D9: 2.21587542 | E9: 2.1770146 | F9: 0.4131722511 | H9: =1.2*D3*COS(C3) -> 0 | I9: =1.2*D3*SIN(C3) -> 0 | K9: =K8+Calcs!B$12 -> 0.1875577704 | L9: 2.560359673 | M9: 2.515457475 | N9: 0.4774048037
C10: =C9+Calcs!B$12 -> 0.2188173988 | D10: 2.495077923 | E10: 2.435582404 | F10: 0.5416199713 | K10: =K9+Calcs!B$12 -> 0.2188173988 | L10: 2.242764681 | M10: 2.189285611 | N10: 0.4868489802
C11: =C10+Calcs!B$12 -> 0.2500770272 | D11: 2.735321604 | E11: 2.650234945 | F11: 0.6769335368 | K11: =K10+Calcs!B$12 -> 0.2500770272 | L11: 1.890150555 | M11: 1.831354326 | N11: 0.4677717963
A12: delta Q = | B12: =2*PI()/201 -> 0.03125962839 | C12: =C11+Calcs!B$12 -> 0.2813366555 | D12: 2.932855235 | E12: 2.817550581 | F12: 0.8142779314 | K12: =K11+Calcs!B$12 -> 0.2813366555 | L12: 1.508023107 | M12: 1.448735462 | N12: 0.4186875376
C13: =C12+Calcs!B$12 -> 0.3125962839 | D13: 3.08459447 | E13: 2.935109909 | F13: 0.9486057504 | K13: =K12+Calcs!B$12 -> 0.3125962839 | L13: 1.102348979 | M13: 1.04892732 | N13: 0.339005529
C14: =C13+Calcs!B$12 -> 0.3438559123 | D14: 3.188170014 | E14: 3.001540163 | F14: 1.074795184 | K14: =K13+Calcs!B$12 -> 0.3438559123 | L14: 0.6794624755 | M14: 0.6396879402 | N14: 0.2290602425
C15: =C14+Calcs!B$12 -> 0.3751155407 | D15: 3.24196461 | E15: 3.016535561 | F15: 1.187791117 | K15: =K14+Calcs!B$12 -> 0.3751155407 | L15: 0.2459666613 | M15: 0.2288634424 | N15: 0.09011727476
C16: =C15+Calcs!B$12 -> 0.4063751691 | D16: 3.245138293 | E16: 2.980853211 | F16: 1.282745756 | K16: =K15+Calcs!B$12 -> 0.4063751691 | L16: -0.1913697428 | M16: -0.1757845308 | N16: -0.07564507375
C17: =C16+Calcs!B$12 -> 0.4376347975 | D17: 3.19764151 | E17: 2.896284789 | F17: 1.355155211 | K17: =K16+Calcs!B$12 -> 0.4376347975 | L17: -0.625718048 | M17: -0.5667482297 | N17: -0.2651782793
C18: =C17+Calcs!B$12 -> 0.4688944259 | D18: 3.100215888 | E18: 2.765604758 | F18: 1.400988533 | H18: Tracing point -- cosine | K18: =K17+Calcs!B$12 -> 0.4688944259 | L18: -1.050296223 | M18: -0.9369361154 | N18: -0.4746291927
C19: =C18+Calcs!B$12 -> 0.5001540543 | D19: 2.954382656 | E19: 2.592496466 | F19: 1.416805898 | K19: =K18+Calcs!B$12 -> 0.5001540543 | L19: -1.458474788 | M19: -1.279824306 | N19: -0.6994272314
C20: =C19+Calcs!B$12 -> 0.5314136827 | D20: 2.762418896 | E20: 2.381457973 | F20: 1.399862878 | H20: 0 | I20: 0 | K20: =K19+Calcs!B$12 -> 0.5314136827 | L20: -1.843880333 | M20: -1.589593645 | N20: -0.9343910997
C21: =C20+Calcs!B$12 -> 0.5626733111 | D21: 2.527321979 | E21: 2.137689954 | F21: 1.348198074 | H21: =LOOKUP(Cosines!$J$22,Calcs!K3:K204,M3:M204) -> -0.0816884828 | I21: =LOOKUP(Cosines!J22,Calcs!K3:K204,N3:N204) -> 3.483663311 | K21: =K20+Calcs!B$12 -> 0.5626733111 | L21: -2.200495033 | M21: -1.861249245 | N21: -1.173852477
C22: =C21+Calcs!B$12 -> 0.5939329395 | D22: 2.252762775 | E22: 1.866968418 | F22: 1.260701807 | K22: =K21+Calcs!B$12 -> 0.5939329395 | L22: -2.522750608 | M22: -2.090719789 | N22: -1.411793681
C23: =C22+Calcs!B$12 -> 0.6251925679 | D23: 1.943028323 | E23: 1.575505358 | F23: 1.137163986 | K23: =K22+Calcs!B$12 -> 0.6251925679 | L23: -2.805615274 | M23: -2.274934361 | N23: -1.641995955
C24: =C23+Calcs!B$12 -> 0.6564521963 | D24: 1.602954901 | E24: 1.269800719 | F24: 0.9782998255 | H24: Start line: | K24: =K23+Calcs!B$12 -> 0.6564521963 | L24: -3.044672303 | M24: -2.411875143 | N24: -1.858194751
C25: =C24+Calcs!B$12 -> 0.6877118247 | D25: 1.237852509 | E25: 0.9564892566 | F25: 0.7857525917 | H25: 0 | I25: 0 | K25: =K24+Calcs!B$12 -> 0.6877118247 | L25: -3.236188997 | M25: -2.500604867 | N25: -2.054238186
C26: =C25+Calcs!B$12 -> 0.7189714531 | D26: 0.8534219523 | E26: 0.6421859713 | F26: 0.5620731331 | H26: =1.2*L3*COS(K3) -> 4.2 | I26: =1.2*D3*SIN(K3) -> 0 | K26: =K25+Calcs!B$12 -> 0.7189714531 | L26: -3.37717496 | M26: -2.541268567 | N26: -2.224244766
C27: =C26+Calcs!B$12 -> 0.7502310815 | D27: 0.4556658349 | E27: 0.3333338367 | F27: 0.3106765303 | K27: =K26+Calcs!B$12 -> 0.7502310815 | L27: -3.465428801 | M27: -2.535069758 | N27: -2.362756461
C28: =C27+Calcs!B$12 -> 0.7814907098 | D28: 0.05079482796 | E28: 0.03605743819 | F28: 0.03577674802 | K28: =K27+Calcs!B$12 -> 0.7814907098 | L28: -3.499572499 | M28: -2.484221803 | N28: -2.464883306
C29: =C28+Calcs!B$12 -> 0.8127503382 | D29: -0.3548693032 | E29: -0.2439739919 | F29: -0.2576992697 | K29: =K28+Calcs!B$12 -> 0.8127503382 | L29: -3.479072927 | M29: -2.391875833 | N29: -2.526435914
C30: =C29+Calcs!B$12 -> 0.8440099666 | D30: -0.7549924091 | E30: -0.5016709185 | F30: -0.5642161175 | K30: =K29+Calcs!B$12 -> 0.8440099666 | L30: -3.404250169 | M30: -2.262027126 | N30: -2.54404255
C31: =C30+Calcs!B$12 -> 0.875269595 | D31: -1.143326859 | E31: -0.7326323141 | F31: -0.8777506478 | K31: =K30+Calcs!B$12 -> 0.875269595 | L31: -3.276272528 | M31: -2.099402375 | N31: -2.51524777
C32: =C31+Calcs!B$12 -> 0.9065292234 | D32: -1.513809095 | E32: -0.9332364194 | F32: -1.191926072 | K32: =K31+Calcs!B$12 -> 0.9065292234 | L32: -3.097138283 | M32: -1.909330741 | N32: -2.438590097
C33: =C32+Calcs!B$12 -> 0.9377888518 | D33: -1.860654306 | E33: -1.100711384 | F33: -1.50015629 | K33: =K32+Calcs!B$12 -> 0.9377888518 | L33: -2.869644483 | M33: -1.697601936 | N33: -2.313656657
C34: =C33+Calcs!B$12 -> 0.9690484802 | D34: -2.178446758 | E34: -1.233184225 | F34: -1.795797022 | K34: =K33+Calcs!B$12 -> 0.9690484802 | L34: -2.597343278 | M34: -1.470314914 | N34: -2.141113299
C35: =C34+Calcs!B$12 -> 1.000308109 | D35: -2.462224353 | E35: -1.329707065 | F35: -2.072300144 | K35: =K34+Calcs!B$12 -> 1.000308109 | L35: -2.284486453 | M35: -1.233720954 | N35: -1.922709277
C36: =C35+Calcs!B$12 -> 1.031567737 | D36: -2.707556112 | E36: -1.390260191 | F36: -2.323367534 | K36: =K35+Calcs!B$12 -> 1.031567737 | L36: -1.935959039 | M36: -0.9940650065 | N36: -1.661256201
C37: =C36+Calcs!B$12 -> 1.062827365 | D37: -2.910611357 | E37: -1.415732027 | F37: -2.543100725 | K37: =K36+Calcs!B$12 -> 1.062827365 | L37: -1.557203038 | M37: -0.7574292622 | N37: -1.360581572
C38: =C37+Calcs!B$12 -> 1.094086994 | D38: -3.06821953 | E38: -1.407876696 | F38: -2.72614275 | K38: =K37+Calcs!B$12 -> 1.094086994 | L38: -1.154132447 | M38: -0.5295827628 | N38: -1.02545785
C39: =C38+Calcs!B$12 -> 1.125346622 | D39: -3.177919693 | E39: -1.36925038 | F39: -2.86780874 | K39: =K38+Calcs!B$12 -> 1.125346622 | L39: -0.7330409197 | M39: -0.3158407558 | N39: -0.6615085841
C40: =C39+Calcs!B$12 -> 1.156606251 | D40: -3.237998959 | E40: -1.303128225 | F40: -2.9642021 | K40: =K39+Calcs!B$12 -> 1.156606251 | L40: -0.3005034936 | M40: -0.1209372174 | N40: -0.2750936915
C41: =C40+Calcs!B$12 -> 1.187865879 | D41: -3.247519234 | E41: -1.213403983 | F41: -3.012313388 | K41: =K40+Calcs!B$12 -> 1.187865879 | L41: 0.1367260754 | M41: 0.05108636855 | N41: 0.1268235098
C42: =C41+Calcs!B$12 -> 1.219125507 | D42: -3.206331866 | E42: -1.104475039 | F42: -3.010099487 | K42: =K41+Calcs!B$12 -> 1.219125507 | L42: 0.5718207664 | M42: 0.1969732983 | N42: 0.5368244672
C43: =C42+Calcs!B$12 -> 1.250385136 | D43: -3.115079965 | E43: -0.9811157768 | F43: -2.956541057 | K43: =K42+Calcs!B$12 -> 1.250385136 | L43: 0.9979868933 | M43: 0.3143228094 | N43: 0.9471953393
C44: =C43+Calcs!B$12 -> 1.281644764 | D44: -2.975188364 | E44: -0.8483425692 | F44: -2.85167682 | K44: =K43+Calcs!B$12 -> 1.281644764 | L44: 1.408570183 | M44: 0.4016384517 | N44: 1.350095002
C45: =C44+Calcs!B$12 -> 1.312904393 | D45: -2.788841367 | E45: -0.7112738232 | F45: -2.69661375 | K45: =K44+Calcs!B$12 -> 1.312904393 | L45: 1.797159677 | M45: 0.4583525796 | N45: 1.737727199
C46: =C45+Calcs!B$12 -> 1.344164021 | D46: -2.558948646 | E46: -0.5749886632 | F46: -2.493512826 | K46: =K45+Calcs!B$12 -> 1.344164021 | L46: 2.157687834 | M46: 0.4848264717 | N46: 2.102512802
C47: =C46+Calcs!B$12 -> 1.375423649 | D47: -2.28909981 | E47: -0.4443878354 | F47: -2.245550577 | K47: =K46+Calcs!B$12 -> 1.375423649 | L47: 2.48452527 | M47: 0.4823261973 | N47: 2.437258144
C48: =C47+Calcs!B$12 -> 1.406683278 | D48: -1.983508351 | E48: -0.3240603615 | F48: -1.956857241 | K48: =K47+Calcs!B$12 -> 1.406683278 | L48: 2.772568657 | M48: 0.4529749526 | N48: 2.735315457
C49: =C48+Calcs!B$12 -> 1.437942906 | D49: -1.646945856 | E49: -0.2181593136 | F49: -1.632432898 | K49: =K48+Calcs!B$12 -> 1.437942906 | L49: 3.017320407 | M49: 0.399683175 | N49: 2.990731649
C50: =C49+Calcs!B$12 -> 1.469202535 | D50: -1.284667503 | E50: -0.1302898465 | F50: -1.278043485 | K50: =K49+Calcs!B$12 -> 1.469202535 | L50: 3.2149589 | M50: 0.3260582997 | N50: 3.19838189
C51: =C50+Calcs!B$12 -> 1.500462163 | D51: -0.9023300045 | E51: -0.06341231389 | F51: -0.9000990587 | K51: =K50+Calcs!B$12 -> 1.500462163 | L51: 3.362398157 | M51: 0.2362965282 | N51: 3.35408487
C52: =C51+Calcs!B$12 -> 1.531721791 | D52: -0.5059032813 | E52: -0.01976290576 | F52: -0.505517119 | K52: =K51+Calcs!B$12 -> 1.531721791 | L52: 3.457336019 | M52: 0.1350594243 | N52: 3.454696991
C53: =C52+Calcs!B$12 -> 1.56298142 | D53: -0.1015772474 | E53: -0.0007938086721 | F53: -0.1015741457 | K53: =K52+Calcs!B$12 -> 1.56298142 | L53: 3.498290102 | M53: 0.02733853387 | N53: 3.498183277
C54: =C53+Calcs!B$12 -> 1.594241048 | D54: 0.304334841 | E54: -0.00713439191 | F54: 0.3042512052 | K54: =K53+Calcs!B$12 -> 1.594241048 | L54: 3.484620937 | M54: -0.0816884828 | N54: 3.483663311
C55: =C54+Calcs!B$12 -> 1.625500676 | D55: 0.7054949629 | E55: -0.03857439703 | F55: 0.7044396061 | K55: =K54+Calcs!B$12 -> 1.625500676 | L55: 3.416541959 | M55: -0.1868065017 | N55: 3.41143112
C56: =C55+Calcs!B$12 -> 1.656760305 | D56: 1.095639296 | E56: -0.09406955316 | F56: 1.091593508 | K56: =K55+Calcs!B$12 -> 1.656760305 | L56: 3.295116171 | M56: -0.2829125489 | N56: 3.282948533
C57: =C56+Calcs!B$12 -> 1.688019933 | D57: 1.46867602 | E57: -0.1717694769 | F57: 1.458596757 | K57: =K56+Calcs!B$12 -> 1.688019933 | L57: 3.122239549 | M57: -0.3651625317 | N57: 3.100812172
C58: =C57+Calcs!B$12 -> 1.719279562 | D58: 1.818780441 | E58: -0.2690671549 | F58: 1.798767678 | K58: =K57+Calcs!B$12 -> 1.719279562 | L58: 2.900611434 | M58: -0.4291113147 | N58: 2.868694855
C59: =C58+Calcs!B$12 -> 1.75053919 | D59: 2.140485931 | E59: -0.3826687654 | F59: 2.106002051 | K59: =K58+Calcs!B$12 -> 1.75053919 | L59: 2.633692388 | M59: -0.4708425315 | N59: 2.591262801
C60: =C59+Calcs!B$12 -> 1.781798818 | D60: 2.428769296 | E60: -0.5086820796 | F60: 2.3749027 | K60: =K59+Calcs!B$12 -> 1.781798818 | L60: 2.325650157 | M60: -0.48708478 | N60: 2.274070595
C61: =C60+Calcs!B$12 -> 1.813058447 | D61: 2.679129201 | E61: -0.6427212184 | F61: 2.600892675 | K61: =K60+Calcs!B$12 -> 1.813058447 | L61: 1.981294596 | M61: -0.4753111856 | N61: 1.923436391
C62: =C61+Calcs!B$12 -> 1.844318075 | D62: 2.887656457 | E62: -0.7800251229 | F62: 2.780309447 | K62: =K61+Calcs!B$12 -> 1.844318075 | L62: 1.606002565 | M62: -0.4338197312 | N62: 1.54630032
C63: =C62+Calcs!B$12 -> 1.875577704 | D63: 3.051095065 | E63: -0.915586749 | F63: 2.910477968 | K63: =K62+Calcs!B$12 -> 1.875577704 | L63: 1.205633976 | M63: -0.3617922316 | N63: 1.150069418
C64: =C63+Calcs!B$12 -> 1.906837332 | D64: 3.16689305 | E64: -1.044289721 | F64: 2.989760955 | K64: =K63+Calcs!B$12 -> 1.906837332 | L64: 0.7864402922 | M64: -0.2593303596 | N64: 0.7424527579
C65: =C64+Calcs!B$12 -> 1.93809696 | D65: 3.233242311 | E65: -1.161048986 | F65: 3.017585308 | K65: =K64+Calcs!B$12 -> 1.93809696 | L65: 0.354966917 | M65: -0.1274677057 | N65: 0.3312906521
C66: =C65+Calcs!B$12 -> 1.969356589 | D66: 3.249106852 | E66: -1.260951898 | F66: 2.99444413 | K66: =K65+Calcs!B$12 -> 1.969356589 | L66: -0.08204900761 | M66: 0.03184255137 | N66: -0.07561806379
C67: =C66+Calcs!B$12 -> 2.000616217 | D67: =a*SIN(n*Q) -> 3.21423896 | E67: -1.339396139 | F67: 2.921874411 | K67: =K66+Calcs!B$12 -> 2.000616217 | L67: =aa*COS(nn*QQ) -> -0.5177837968 | M67: 0.2157641752 | N67: -0.4706866059
C68: =C67+Calcs!B$12 -> 2.031875846 | D68: 3.129183072 | E68: =D68*COS(C68) -> -1.392220967 | F68: =D68*SIN(C68) -> 2.802411011 | K68: =K67+Calcs!B$12 -> 2.031875846 | L68: -0.9454337698 | M68: =L68*COS(K68) -> 0.4206378109 | N68: =L68*SIN(K68) -> -0.8467046977
C69: =C68+Calcs!B$12 -> 2.063135474 | D69: 2.995267274 | E69: -1.41582841 | F69: 2.639518129 | K69: =K68+Calcs!B$12 -> 2.063135474 | L69: -1.358321484 | M69: 0.642062952 | N69: -1.196993075
C70: =C69+Calcs!B$12 -> 2.094395102 | D70: 2.814582562 | E70: -1.407291281 | F70: 2.4375 | K70: =K69+Calcs!B$12 -> 2.094395102 | L70: -1.75 | M70: 0.875 | N70: -1.515544457
C71: =C70+Calcs!B$12 -> 2.125654731 | D71: 2.589950198 | E71: -1.36444521 | F71: 2.201393036 | K71: =K70+Calcs!B$12 -> 2.125654731 | L71: -2.114353543 | M71: 1.113889976 | N71: -1.797147747
C72: =C71+Calcs!B$12 -> 2.156914359 | D72: 2.324877651 | E72: -1.285962258 | F72: 1.936842059 | K72: =K71+Calcs!B$12 -> 2.156914359 | L72: -2.445692997 | M72: 1.35278899 | N72: -2.037492622
C73: =C72+Calcs!B$12 -> 2.188173988 | D73: 2.023503836 | E73: -1.171404144 | F73: 1.649963668 | K73: =K72+Calcs!B$12 -> 2.188173988 | L73: -2.73884474 | M73: 1.585514207 | N73: -2.23325216
C74: =C73+Calcs!B$12 -> 2.219433616 | D74: 1.690534485 | E74: -1.021253593 | F74: 1.347200038 | K74: =K73+Calcs!B$12 -> 2.219433616 | L74: -2.989231421 | M74: 1.805797727 | N74: -2.382141696
C75: =C74+Calcs!B$12 -> 2.250693244 | D75: 1.331168671 | E75: -0.8369228711 | F75: 1.03516672 | K75: =K74+Calcs!B$12 -> 2.250693244 | L75: -3.192943434 | M75: 2.007444619 | N75: -2.482952653
C76: =C75+Calcs!B$12 -> 2.281952873 | D76: 0.95101763 | E76: -0.6207391122 | F76: 0.7204980827 | K76: =K75+Calcs!B$12 -> 2.281952873 | L76: -3.346799966 | M76: 2.184491195 | N76: -2.535560732
C77: =C76+Calcs!B$12 -> 2.313212501 | D77: 0.5560171425 | E77: -0.3759066266 | F77: 0.4096941187 | K77: =K76+Calcs!B$12 -> 2.313212501 | L77: -3.448398657 | M77: 2.331359606 | N77: -2.540908437
C78: =C77+Calcs!B$12 -> 2.34447213 | D78: 0.152334853 | E78: -0.1064469381 | F78: 0.1089722755 | K78: =K77+Calcs!B$12 -> 2.34447213 | L78: -3.49615312 | M78: 2.443004915 | N78: -2.50096254
C79: =C78+Calcs!B$12 -> 2.375731758 | D79: -0.253726034 | E79: 0.1828821448 | F79: -0.1758721737 | K79: =K78+Calcs!B$12 -> 2.375731758 | L79: -3.489317703 | M79: 2.515050959 | N79: -2.418647702
C80: =C79+Calcs!B$12 -> 2.406991386 | D80: -0.6558251742 | E80: 0.4866866022 | F80: -0.4395939152 | K80: =K79+Calcs!B$12 -> 2.406991386 | L80: -3.427999136 | M80: 2.543911575 | N80: -2.297758032
C81: =C80+Calcs!B$12 -> 2.438251015 | D81: -1.047684083 | E81: 0.7990531213 | F81: -0.677610542 | K81: =K80+Calcs!B$12 -> 2.438251015 | L81: -3.313154864 | M81: 2.526894107 | N81: -2.14284888
C82: =C81+Calcs!B$12 -> 2.469510643 | D82: -1.423184169 | E82: 1.113680136 | F82: -0.8860980384 | K82: =K81+Calcs!B$12 -> 2.469510643 | L82: -3.146578095 | M82: 2.462282533 | N82: -1.959111645
C83: =C82+Calcs!B$12 -> 2.500770272 | D83: -1.776462273 | E83: 1.42401991 | F83: -1.062066618 | K83: =K82+Calcs!B$12 -> 2.500770272 | L83: -2.930869806 | M83: 2.349398027 | N83: -1.752234783
C84: =C83+Calcs!B$12 -> 2.5320299 | D84: -2.102002214 | E84: 1.723428302 | F84: -1.203415222 | K84: =K83+Calcs!B$12 -> 2.5320299 | L84: -2.669398123 | M84: 2.188635314 | N84: -1.528254496
C85: =C84+Calcs!B$12 -> 2.563289528 | D85: -2.394720925 | E85: 2.005318644 | F85: -1.3089635 | K85: =K84+Calcs!B$12 -> 2.563289528 | L85: -2.366245737 | M85: 1.981473767 | N85: -1.293398855
C86: =C85+Calcs!B$12 -> 2.594549157 | D86: -2.650047815 | E86: 2.263316056 | F86: -1.378460682 | K86: =K85+Calcs!B$12 -> 2.594549157 | L86: -2.026146149 | M86: 1.730462781 | N86: -1.053929211
C87: =C86+Calcs!B$12 -> 2.625808785 | D87: -2.863996143 | E87: 2.491408495 | F87: -1.412571278 | K87: =K86+Calcs!B$12 -> 2.625808785 | L87: -1.654409768 | M87: 1.4391816 | N87: -0.8159828451
C88: =C87+Calcs!B$12 -> 2.657068413 | D88: -3.033225261 | E88: 2.684090879 | F88: -1.41283815 | K88: =K87+Calcs!B$12 -> 2.657068413 | L88: -1.256840986 | M88: 1.112174381 | N88: -0.5854207123
C89: =C88+Calcs!B$12 -> 2.688328042 | D89: -3.155092779 | E89: 2.836498808 | F89: -1.381624029 | K89: =K88+Calcs!B$12 -> 2.688328042 | L89: -0.8396475482 | M89: 0.7548618808 | N89: -0.3676840301
C90: =C89+Calcs!B$12 -> 2.71958767 | D90: -3.227695826 | E90: 2.944528627 | F90: -1.322033096 | K90: =K89+Calcs!B$12 -> 2.71958767 | L90: -0.4093436269 | M90: 0.3734317274 | N90: -0.1676632036
C91: =C90+Calcs!B$12 -> 2.750847299 | D91: -3.249900757 | E91: 3.004940878 | F91: -1.237814709 | K91: =K90+Calcs!B$12 -> 2.750847299 | L91: 0.02735189643 | M91: -0.02529025894 | N91: 0.01041772727
C92: =C91+Calcs!B$12 -> 2.782106927 | D92: -3.22136086 | E92: 3.015444597 | F92: -1.133251814 | K92: =K91+Calcs!B$12 -> 2.782106927 | L92: 0.4636203399 | M92: -0.433984738 | N92: 0.1630983345
C93: =C92+Calcs!B$12 -> 2.813366555 | D93: -3.142521763 | E93: 2.974760361 | F93: -1.013036932 | K93: =K92+Calcs!B$12 -> 2.813366555 | L93: 0.89264969 | M93: -0.8449961891 | N93: 0.2877584221
C94: =C93+Calcs!B$12 -> 2.844626184 | D94: -3.014614481 | E94: 2.882660469 | F94: -0.8821389291 | K94: =K93+Calcs!B$12 -> 2.844626184 | L94: 1.307740966 | M94: -1.250499263 | N94: 0.3826722199
C95: =C94+Calcs!B$12 -> 2.875885812 | D95: -2.839636195 | E95: 2.739985215 | F95: -0.7456639585 | K95: =K94+Calcs!B$12 -> 2.875885812 | L95: 1.702412822 | M95: -1.642670273 | N95: 0.4470389151
C96: =C95+Calcs!B$12 -> 2.907145441 | D96: -2.62031906 | E96: 2.548634744 | F96: -0.6087141538 | K96: =K95+Calcs!B$12 -> 2.907145441 | L96: 2.070502743 | M96: -2.013859804 | N96: 0.4809888782
C97: =C96+Calcs!B$12 -> 2.938405069 | D97: -2.360087556 | E97: 2.311536601 | F97: -0.4762476408 | K97: =K96+Calcs!B$12 -> 2.938405069 | L97: 2.406263275 | M97: -2.356762408 | N97: 0.4855655482
C98: =C97+Calcs!B$12 -> 2.969664697 | D98: -2.063005007 | E98: 2.032589627 | F98: -0.3529434304 | K98: =K97+Calcs!B$12 -> 2.969664697 | L98: 2.704451762 | M98: -2.664579378 | N98: 0.462683551
C99: =C98+Calcs!B$12 -> 3.000924326 | D99: -1.733710139 | E99: 1.716585443 | F99: -0.2430746087 | K99: =K98+Calcs!B$12 -> 3.000924326 | L99: 2.960412207 | M99: -2.931170779 | N99: 0.4150642154
C100: =C99+Calcs!B$12 -> 3.032183954 | D100: -1.377344653 | E100: 1.369109284 | F100: -0.1503930268 | K100: =K99+Calcs!B$12 -> 3.032183954 | L100: 3.170147976 | M100: -3.151193142 | N100: 0.3461502164
C101: =C100+Calcs!B$12 -> 3.063443583 | D101: -0.9994729351 | E101: 0.9964224589 | F101: -0.07802840121 | K101: =K100+Calcs!B$12 -> 3.063443583 | L101: 3.330384198 | M101: -3.320219583 | N101: 0.2600015921
C102: =C101+Calcs!B$12 -> 3.094703211 | D102: -0.6059951764 | E102: 0.605329122 | F102: -0.02840436497 | K102: =K101+Calcs!B$12 -> 3.094703211 | L102: 3.4386189 | M102: -3.434839485 | N102: 0.1611758476
C103: =C102+Calcs!B$12 -> 3.125962839 | D103: -0.2030552453 | E103: 0.2030304435 | F103: -0.003173586539 | K103: =K102+Calcs!B$12 -> 3.125962839 | L103: 3.493162077 | M103: -3.492735412 | N103: 0.05459525131
C104: =C103+Calcs!B$12 -> 3.157222468 | D104: 0.2030552453 | E104: -0.2030304435 | F104: -0.003173586539 | K104: =K103+Calcs!B$12 -> 3.157222468 | L104: 3.493162077 | M104: -3.492735412 | N104: -0.05459525131
C105: =C104+Calcs!B$12 -> 3.188482096 | D105: 0.6059951764 | E105: =D105*COS(C105) -> -0.605329122 | F105: =D105*SIN(C105) -> -0.02840436497 | K105: =K104+Calcs!B$12 -> 3.188482096 | L105: 3.4386189 | M105: -3.434839485 | N105: -0.1611758476
C106: =C105+Calcs!B$12 -> 3.219741725 | D106: 0.9994729351 | E106: -0.9964224589 | F106: -0.07802840121 | K106: =K105+Calcs!B$12 -> 3.219741725 | L106: 3.330384198 | M106: -3.320219583 | N106: -0.2600015921
C107: =C106+Calcs!B$12 -> 3.251001353 | D107: 1.377344653 | E107: -1.369109284 | F107: -0.1503930268 | K107: =K106+Calcs!B$12 -> 3.251001353 | L107: 3.170147976 | M107: -3.151193142 | N107: -0.3461502164
C108: =C107+Calcs!B$12 -> 3.282260981 | D108: 1.733710139 | E108: -1.716585443 | F108: -0.2430746087 | K108: =K107+Calcs!B$12 -> 3.282260981 | L108: 2.960412207 | M108: -2.931170779 | N108: -0.4150642154
C109: =C108+Calcs!B$12 -> 3.31352061 | D109: 2.063005007 | E109: -2.032589627 | F109: -0.3529434304 | K109: =K108+Calcs!B$12 -> 3.31352061 | L109: 2.704451762 | M109: -2.664579378 | N109: -0.462683551
C110: =C109+Calcs!B$12 -> 3.344780238 | D110: 2.360087556 | E110: -2.311536601 | F110: -0.4762476408 | K110: =K109+Calcs!B$12 -> 3.344780238 | L110: 2.406263275 | M110: -2.356762408 | N110: -0.4855655482
C111: =C110+Calcs!B$12 -> 3.376039867 | D111: 2.62031906 | E111: -2.548634744 | F111: -0.6087141538 | K111: =K110+Calcs!B$12 -> 3.376039867 | L111: 2.070502743 | M111: -2.013859804 | N111: -0.4809888782
C112: =C111+Calcs!B$12 -> 3.407299495 | D112: 2.839636195 | E112: -2.739985215 | F112: -0.7456639585 | K112: =K111+Calcs!B$12 -> 3.407299495 | L112: 1.702412822 | M112: -1.642670273 | N112: -0.4470389151
C113: =C112+Calcs!B$12 -> 3.438559123 | D113: 3.014614481 | E113: -2.882660469 | F113: -0.8821389291 | K113: =K112+Calcs!B$12 -> 3.438559123 | L113: 1.307740966 | M113: -1.250499263 | N113: -0.3826722199
C114: =C113+Calcs!B$12 -> 3.469818752 | D114: 3.142521763 | E114: -2.974760361 | F114: -1.013036932 | K114: =K113+Calcs!B$12 -> 3.469818752 | L114: 0.89264969 | M114: -0.8449961891 | N114: -0.2877584221
C115: =C114+Calcs!B$12 -> 3.50107838 | D115: 3.22136086 | E115: -3.015444597 | F115: -1.133251814 | K115: =K114+Calcs!B$12 -> 3.50107838 | L115: 0.4636203399 | M115: -0.433984738 | N115: -0.1630983345
C116: =C115+Calcs!B$12 -> 3.532338009 | D116: 3.249900757 | E116: -3.004940878 | F116: -1.237814709 | K116: =K115+Calcs!B$12 -> 3.532338009 | L116: 0.02735189643 | M116: -0.02529025894 | N116: -0.01041772727
C117: =C116+Calcs!B$12 -> 3.563597637 | D117: 3.227695826 | E117: -2.944528627 | F117: -1.322033096 | K117: =K116+Calcs!B$12 -> 3.563597637 | L117: -0.4093436269 | M117: 0.3734317274 | N117: 0.1676632036
C118: =C117+Calcs!B$12 -> 3.594857265 | D118: 3.155092779 | E118: -2.836498808 | F118: -1.381624029 | K118: =K117+Calcs!B$12 -> 3.594857265 | L118: -0.8396475482 | M118: 0.7548618808 | N118: 0.3676840301
C119: =C118+Calcs!B$12 -> 3.626116894 | D119: 3.033225261 | E119: -2.684090879 | F119: -1.41283815 | K119: =K118+Calcs!B$12 -> 3.626116894 | L119: -1.256840986 | M119: 1.112174381 | N119: 0.5854207123
C120: =C119+Calcs!B$12 -> 3.657376522 | D120: 2.863996143 | E120: -2.491408495 | F120: -1.412571278 | K120: =K119+Calcs!B$12 -> 3.657376522 | L120: -1.654409768 | M120: 1.4391816 | N120: 0.8159828451
C121: =C120+Calcs!B$12 -> 3.68863615 | D121: 2.650047815 | E121: -2.263316056 | F121: -1.378460682 | K121: =K120+Calcs!B$12 -> 3.68863615 | L121: -2.026146149 | M121: 1.730462781 | N121: 1.053929211
C122: =C121+Calcs!B$12 -> 3.719895779 | D122: 2.394720925 | E122: -2.005318644 | F122: -1.3089635 | K122: =K121+Calcs!B$12 -> 3.719895779 | L122: -2.366245737 | M122: 1.981473767 | N122: 1.293398855
C123: =C122+Calcs!B$12 -> 3.751155407 | D123: 2.102002214 | E123: -1.723428302 | F123: -1.203415222 | K123: =K122+Calcs!B$12 -> 3.751155407 | L123: -2.669398123 | M123: 2.188635314 | N123: 1.528254496
C124: =C123+Calcs!B$12 -> 3.782415036 | D124: 1.776462273 | E124: -1.42401991 | F124: -1.062066618 | K124: =K123+Calcs!B$12 -> 3.782415036 | L124: -2.930869806 | M124: 2.349398027 | N124: 1.752234783
C125: =C124+Calcs!B$12 -> 3.813674664 | D125: 1.423184169 | E125: -1.113680136 | F125: -0.8860980384 | K125: =K124+Calcs!B$12 -> 3.813674664 | L125: -3.146578095 | M125: 2.462282533 | N125: 1.959111645
C126: =C125+Calcs!B$12 -> 3.844934292 | D126: 1.047684083 | E126: -0.7990531213 | F126: -0.677610542 | K126: =K125+Calcs!B$12 -> 3.844934292 | L126: -3.313154864 | M126: 2.526894107 | N126: 2.14284888
C127: =C126+Calcs!B$12 -> 3.876193921 | D127: 0.6558251742 | E127: -0.4866866022 | F127: -0.4395939152 | K127: =K126+Calcs!B$12 -> 3.876193921 | L127: -3.427999136 | M127: 2.543911575 | N127: 2.297758032
C128: =C127+Calcs!B$12 -> 3.907453549 | D128: 0.253726034 | E128: -0.1828821448 | F128: -0.1758721737 | K128: =K127+Calcs!B$12 -> 3.907453549 | L128: -3.489317703 | M128: 2.515050959 | N128: 2.418647702
C129: =C128+Calcs!B$12 -> 3.938713178 | D129: -0.152334853 | E129: 0.1064469381 | F129: 0.1089722755 | K129: =K128+Calcs!B$12 -> 3.938713178 | L129: -3.49615312 | M129: 2.443004915 | N129: 2.50096254
C130: =C129+Calcs!B$12 -> 3.969972806 | D130: -0.5560171425 | E130: 0.3759066266 | F130: 0.4096941187 | K130: =K129+Calcs!B$12 -> 3.969972806 | L130: -3.448398657 | M130: 2.331359606 | N130: 2.540908437
C131: =C130+Calcs!B$12 -> 4.001232434 | D131: =a*SIN(n*Q) -> -0.95101763 | E131: 0.6207391122 | F131: 0.7204980827 | K131: =K130+Calcs!B$12 -> 4.001232434 | L131: =aa*COS(nn*QQ) -> -3.346799966 | M131: 2.184491195 | N131: 2.535560732
C132: =C131+Calcs!B$12 -> 4.032492063 | D132: -1.331168671 | E132: 0.8369228711 | F132: 1.03516672 | K132: =K131+Calcs!B$12 -> 4.032492063 | L132: -3.192943434 | M132: =L132*COS(K132) -> 2.007444619 | N132: =L132*SIN(K132) -> 2.482952653
C133: =C132+Calcs!B$12 -> 4.063751691 | D133: -1.690534485 | E133: 1.021253593 | F133: 1.347200038 | K133: =K132+Calcs!B$12 -> 4.063751691 | L133: -2.989231421 | M133: 1.805797727 | N133: 2.382141696
C134: =C133+Calcs!B$12 -> 4.09501132 | D134: -2.023503836 | E134: 1.171404144 | F134: 1.649963668 | K134: =K133+Calcs!B$12 -> 4.09501132 | L134: -2.73884474 | M134: 1.585514207 | N134: 2.23325216
C135: =C134+Calcs!B$12 -> 4.126270948 | D135: -2.324877651 | E135: 1.285962258 | F135: 1.936842059 | K135: =K134+Calcs!B$12 -> 4.126270948 | L135: -2.445692997 | M135: 1.35278899 | N135: 2.037492622
C136: =C135+Calcs!B$12 -> 4.157530576 | D136: -2.589950198 | E136: 1.36444521 | F136: 2.201393036 | K136: =K135+Calcs!B$12 -> 4.157530576 | L136: -2.114353543 | M136: 1.113889976 | N136: 1.797147747
C137: =C136+Calcs!B$12 -> 4.188790205 | D137: -2.814582562 | E137: 1.407291281 | F137: 2.4375 | K137: =K136+Calcs!B$12 -> 4.188790205 | L137: -1.75 | M137: 0.875 | N137: 1.515544457
C138: =C137+Calcs!B$12 -> 4.220049833 | D138: -2.995267274 | E138: 1.41582841 | F138: 2.639518129 | K138: =K137+Calcs!B$12 -> 4.220049833 | L138: -1.358321484 | M138: 0.642062952 | N138: 1.196993075
C139: =C138+Calcs!B$12 -> 4.251309462 | D139: -3.129183072 | E139: 1.392220967 | F139: 2.802411011 | K139: =K138+Calcs!B$12 -> 4.251309462 | L139: -0.9454337698 | M139: 0.4206378109 | N139: 0.8467046977
C140: =C139+Calcs!B$12 -> 4.28256909 | D140: -3.21423896 | E140: 1.339396139 | F140: 2.921874411 | K140: =K139+Calcs!B$12 -> 4.28256909 | L140: -0.5177837968 | M140: 0.2157641752 | N140: 0.4706866059
C141: =C140+Calcs!B$12 -> 4.313828718 | D141: -3.249106852 | E141: 1.260951898 | F141: 2.99444413 | K141: =K140+Calcs!B$12 -> 4.313828718 | L141: -0.08204900761 | M141: 0.03184255137 | N141: 0.07561806379
C142: =C141+Calcs!B$12 -> 4.345088347 | D142: -3.233242311 | E142: 1.161048986 | F142: 3.017585308 | K142: =K141+Calcs!B$12 -> 4.345088347 | L142: 0.354966917 | M142: -0.1274677057 | N142: -0.3312906521
C143: =C142+Calcs!B$12 -> 4.376347975 | D143: -3.16689305 | E143: 1.044289721 | F143: 2.989760955 | K143: =K142+Calcs!B$12 -> 4.376347975 | L143: 0.7864402922 | M143: -0.2593303596 | N143: -0.7424527579
C144: =C143+Calcs!B$12 -> 4.407607604 | D144: -3.051095065 | E144: 0.915586749 | F144: 2.910477968 | K144: =K143+Calcs!B$12 -> 4.407607604 | L144: 1.205633976 | M144: -0.3617922316 | N144: -1.150069418
C145: =C144+Calcs!B$12 -> 4.438867232 | D145: -2.887656457 | E145: 0.7800251229 | F145: 2.780309447 | K145: =K144+Calcs!B$12 -> 4.438867232 | L145: 1.606002565 | M145: -0.4338197312 | N145: -1.54630032
C146: =C145+Calcs!B$12 -> 4.47012686 | D146: -2.679129201 | E146: 0.6427212184 | F146: 2.600892675 | K146: =K145+Calcs!B$12 -> 4.47012686 | L146: 1.981294596 | M146: -0.4753111856 | N146: -1.923436391
C147: =C146+Calcs!B$12 -> 4.501386489 | D147: -2.428769296 | E147: 0.5086820796 | F147: 2.3749027 | K147: =K146+Calcs!B$12 -> 4.501386489 | L147: 2.325650157 | M147: -0.48708478 | N147: -2.274070595
C148: =C147+Calcs!B$12 -> 4.532646117 | D148: -2.140485931 | E148: 0.3826687654 | F148: 2.106002051 | K148: =K147+Calcs!B$12 -> 4.532646117 | L148: 2.633692388 | M148: -0.4708425315 | N148: -2.591262801
C149: =C148+Calcs!B$12 -> 4.563905746 | D149: -1.818780441 | E149: 0.2690671549 | F149: 1.798767678 | K149: =K148+Calcs!B$12 -> 4.563905746 | L149: 2.900611434 | M149: -0.4291113147 | N149: -2.868694855
C150: =C149+Calcs!B$12 -> 4.595165374 | D150: -1.46867602 | E150: 0.1717694769 | F150: 1.458596757 | K150: =K149+Calcs!B$12 -> 4.595165374 | L150: 3.122239549 | M150: -0.3651625317 | N150: -3.100812172
C151: =C150+Calcs!B$12 -> 4.626425002 | D151: -1.095639296 | E151: 0.09406955316 | F151: 1.091593508 | K151: =K150+Calcs!B$12 -> 4.626425002 | L151: 3.295116171 | M151: -0.2829125489 | N151: -3.282948533
C152: =C151+Calcs!B$12 -> 4.657684631 | D152: -0.7054949629 | E152: 0.03857439703 | F152: 0.7044396061 | K152: =K151+Calcs!B$12 -> 4.657684631 | L152: 3.416541959 | M152: -0.1868065017 | N152: -3.41143112
C153: =C152+Calcs!B$12 -> 4.688944259 | D153: -0.304334841 | E153: 0.00713439191 | F153: 0.3042512052 | K153: =K152+Calcs!B$12 -> 4.688944259 | L153: 3.484620937 | M153: -0.0816884828 | N153: -3.483663311
C154: =C153+Calcs!B$12 -> 4.720203887 | D154: 0.1015772474 | E154: 0.0007938086721 | F154: -0.1015741457 | K154: =K153+Calcs!B$12 -> 4.720203887 | L154: 3.498290102 | M154: 0.02733853387 | N154: -3.498183277
C155: =C154+Calcs!B$12 -> 4.751463516 | D155: 0.5059032813 | E155: 0.01976290576 | F155: -0.505517119 | K155: =K154+Calcs!B$12 -> 4.751463516 | L155: 3.457336019 | M155: 0.1350594243 | N155: -3.454696991
C156: =C155+Calcs!B$12 -> 4.782723144 | D156: 0.9023300045 | E156: 0.06341231389 | F156: -0.9000990587 | K156: =K155+Calcs!B$12 -> 4.782723144 | L156: 3.362398157 | M156: 0.2362965282 | N156: -3.35408487
C157: =C156+Calcs!B$12 -> 4.813982773 | D157: 1.284667503 | E157: 0.1302898465 | F157: -1.278043485 | K157: =K156+Calcs!B$12 -> 4.813982773 | L157: 3.2149589 | M157: 0.3260582997 | N157: -3.19838189
C158: =C157+Calcs!B$12 -> 4.845242401 | D158: 1.646945856 | E158: 0.2181593136 | F158: -1.632432898 | K158: =K157+Calcs!B$12 -> 4.845242401 | L158: 3.017320407 | M158: 0.399683175 | N158: -2.990731649
C159: =C158+Calcs!B$12 -> 4.876502029 | D159: 1.983508351 | E159: 0.3240603615 | F159: -1.956857241 | K159: =K158+Calcs!B$12 -> 4.876502029 | L159: 2.772568657 | M159: 0.4529749526 | N159: -2.735315457
C160: =C159+Calcs!B$12 -> 4.907761658 | D160: 2.28909981 | E160: 0.4443878354 | F160: -2.245550577 | K160: =K159+Calcs!B$12 -> 4.907761658 | L160: 2.48452527 | M160: 0.4823261973 | N160: -2.437258144
C161: =C160+Calcs!B$12 -> 4.939021286 | D161: 2.558948646 | E161: 0.5749886632 | F161: -2.493512826 | K161: =K160+Calcs!B$12 -> 4.939021286 | L161: 2.157687834 | M161: 0.4848264717 | N161: -2.102512802
C162: =C161+Calcs!B$12 -> 4.970280915 | D162: 2.788841367 | E162: 0.7112738232 | F162: -2.69661375 | K162: =K161+Calcs!B$12 -> 4.970280915 | L162: 1.797159677 | M162: 0.4583525796 | N162: -1.737727199
C163: =C162+Calcs!B$12 -> 5.001540543 | D163: 2.975188364 | E163: 0.8483425692 | F163: -2.85167682 | K163: =K162+Calcs!B$12 -> 5.001540543 | L163: 1.408570183 | M163: 0.4016384517 | N163: -1.350095002
C164: =C163+Calcs!B$12 -> 5.032800171 | D164: 3.115079965 | E164: 0.9811157768 | F164: -2.956541057 | K164: =K163+Calcs!B$12 -> 5.032800171 | L164: 0.9979868933 | M164: 0.3143228094 | N164: -0.9471953393
C165: =C164+Calcs!B$12 -> 5.0640598 | D165: 3.206331866 | E165: 1.104475039 | F165: -3.010099487 | K165: =K164+Calcs!B$12 -> 5.0640598 | L165: 0.5718207664 | M165: 0.1969732983 | N165: -0.5368244672
C166: =C165+Calcs!B$12 -> 5.095319428 | D166: 3.247519234 | E166: 1.213403983 | F166: -3.012313388 | K166: =K165+Calcs!B$12 -> 5.095319428 | L166: 0.1367260754 | M166: 0.05108636855 | N166: -0.1268235098
C167: =C166+Calcs!B$12 -> 5.126579057 | D167: 3.237998959 | E167: 1.303128225 | F167: -2.9642021 | K167: =K166+Calcs!B$12 -> 5.126579057 | L167: -0.3005034936 | M167: -0.1209372174 | N167: 0.2750936915
C168: =C167+Calcs!B$12 -> 5.157838685 | D168: 3.177919693 | E168: 1.36925038 | F168: -2.86780874 | K168: =K167+Calcs!B$12 -> 5.157838685 | L168: -0.7330409197 | M168: -0.3158407558 | N168: 0.6615085841
C169: =C168+Calcs!B$12 -> 5.189098313 | D169: 3.06821953 | E169: =D169*COS(C169) -> 1.407876696 | F169: =D169*SIN(C169) -> -2.72614275 | K169: =K168+Calcs!B$12 -> 5.189098313 | L169: -1.154132447 | M169: -0.5295827628 | N169: 1.02545785
C170: =C169+Calcs!B$12 -> 5.220357942 | D170: 2.910611357 | E170: 1.415732027 | F170: -2.543100725 | K170: =K169+Calcs!B$12 -> 5.220357942 | L170: -1.557203038 | M170: -0.7574292622 | N170: 1.360581572
C171: =C170+Calcs!B$12 -> 5.25161757 | D171: 2.707556112 | E171: 1.390260191 | F171: -2.323367534 | K171: =K170+Calcs!B$12 -> 5.25161757 | L171: -1.935959039 | M171: -0.9940650065 | N171: 1.661256201
C172: =C171+Calcs!B$12 -> 5.282877199 | D172: 2.462224353 | E172: 1.329707065 | F172: -2.072300144 | K172: =K171+Calcs!B$12 -> 5.282877199 | L172: -2.284486453 | M172: -1.233720954 | N172: 1.922709277
C173: =C172+Calcs!B$12 -> 5.314136827 | D173: 2.178446758 | E173: 1.233184225 | F173: -1.795797022 | K173: =K172+Calcs!B$12 -> 5.314136827 | L173: -2.597343278 | M173: -1.470314914 | N173: 2.141113299
C174: =C173+Calcs!B$12 -> 5.345396455 | D174: 1.860654306 | E174: 1.100711384 | F174: -1.50015629 | K174: =K173+Calcs!B$12 -> 5.345396455 | L174: -2.869644483 | M174: -1.697601936 | N174: 2.313656657
C175: =C174+Calcs!B$12 -> 5.376656084 | D175: 1.513809095 | E175: 0.9332364194 | F175: -1.191926072 | K175: =K174+Calcs!B$12 -> 5.376656084 | L175: -3.097138283 | M175: -1.909330741 | N175: 2.438590097
C176: =C175+Calcs!B$12 -> 5.407915712 | D176: 1.143326859 | E176: 0.7326323141 | F176: -0.8777506478 | K176: =K175+Calcs!B$12 -> 5.407915712 | L176: -3.276272528 | M176: -2.099402375 | N176: 2.51524777
C177: =C176+Calcs!B$12 -> 5.439175341 | D177: 0.7549924091 | E177: 0.5016709185 | F177: -0.5642161175 | K177: =K176+Calcs!B$12 -> 5.439175341 | L177: -3.404250169 | M177: -2.262027126 | N177: 2.54404255
C178: =C177+Calcs!B$12 -> 5.470434969 | D178: 0.3548693032 | E178: 0.2439739919 | F178: -0.2576992697 | K178: =K177+Calcs!B$12 -> 5.470434969 | L178: -3.479072927 | M178: -2.391875833 | N178: 2.526435914
C179: =C178+Calcs!B$12 -> 5.501694597 | D179: -0.05079482796 | E179: -0.03605743819 | F179: 0.03577674802 | K179: =K178+Calcs!B$12 -> 5.501694597 | L179: -3.499572499 | M179: -2.484221803 | N179: 2.464883306
C180: =C179+Calcs!B$12 -> 5.532954226 | D180: -0.4556658349 | E180: -0.3333338367 | F180: 0.3106765303 | K180: =K179+Calcs!B$12 -> 5.532954226 | L180: -3.465428801 | M180: -2.535069758 | N180: 2.362756461
C181: =C180+Calcs!B$12 -> 5.564213854 | D181: -0.8534219523 | E181: -0.6421859713 | F181: 0.5620731331 | K181: =K180+Calcs!B$12 -> 5.564213854 | L181: -3.37717496 | M181: -2.541268567 | N181: 2.224244766
C182: =C181+Calcs!B$12 -> 5.595473483 | D182: -1.237852509 | E182: -0.9564892566 | F182: 0.7857525917 | K182: =K181+Calcs!B$12 -> 5.595473483 | L182: -3.236188997 | M182: -2.500604867 | N182: 2.054238186
C183: =C182+Calcs!B$12 -> 5.626733111 | D183: -1.602954901 | E183: -1.269800719 | F183: 0.9782998255 | K183: =K182+Calcs!B$12 -> 5.626733111 | L183: -3.044672303 | M183: -2.411875143 | N183: 1.858194751
C184: =C183+Calcs!B$12 -> 5.657992739 | D184: -1.943028323 | E184: -1.575505358 | F184: 1.137163986 | K184: =K183+Calcs!B$12 -> 5.657992739 | L184: -2.805615274 | M184: -2.274934361 | N184: 1.641995955
C185: =C184+Calcs!B$12 -> 5.689252368 | D185: -2.252762775 | E185: -1.866968418 | F185: 1.260701807 | K185: =K184+Calcs!B$12 -> 5.689252368 | L185: -2.522750608 | M185: -2.090719789 | N185: 1.411793681
C186: =C185+Calcs!B$12 -> 5.720511996 | D186: -2.527321979 | E186: -2.137689954 | F186: 1.348198074 | K186: =K185+Calcs!B$12 -> 5.720511996 | L186: -2.200495033 | M186: -1.861249245 | N186: 1.173852477
C187: =C186+Calcs!B$12 -> 5.751771624 | D187: -2.762418896 | E187: -2.381457973 | F187: 1.399862878 | K187: =K186+Calcs!B$12 -> 5.751771624 | L187: -1.843880333 | M187: -1.589593645 | N187: 0.9343910997
C188: =C187+Calcs!B$12 -> 5.783031253 | D188: -2.954382656 | E188: -2.592496466 | F188: 1.416805898 | K188: =K187+Calcs!B$12 -> 5.783031253 | L188: -1.458474788 | M188: -1.279824306 | N188: 0.6994272314
C189: =C188+Calcs!B$12 -> 5.814290881 | D189: -3.100215888 | E189: -2.765604758 | F189: 1.400988533 | K189: =K188+Calcs!B$12 -> 5.814290881 | L189: -1.050296223 | M189: -0.9369361154 | N189: 0.4746291927
C190: =C189+Calcs!B$12 -> 5.84555051 | D190: -3.19764151 | E190: -2.896284789 | F190: 1.355155211 | K190: =K189+Calcs!B$12 -> 5.84555051 | L190: -0.625718048 | M190: -0.5667482297 | N190: 0.2651782793
C191: =C190+Calcs!B$12 -> 5.876810138 | D191: -3.245138293 | E191: -2.980853211 | F191: 1.282745756 | K191: =K190+Calcs!B$12 -> 5.876810138 | L191: -0.1913697428 | M191: -0.1757845308 | N191: 0.07564507375
C192: =C191+Calcs!B$12 -> 5.908069766 | D192: -3.24196461 | E192: -3.016535561 | F192: 1.187791117 | K192: =K191+Calcs!B$12 -> 5.908069766 | L192: 0.2459666613 | M192: 0.2288634424 | N192: -0.09011727476
C193: =C192+Calcs!B$12 -> 5.939329395 | D193: -3.188170014 | E193: -3.001540163 | F193: 1.074795184 | K193: =K192+Calcs!B$12 -> 5.939329395 | L193: 0.6794624755 | M193: 0.6396879402 | N193: -0.2290602425
C194: =C193+Calcs!B$12 -> 5.970589023 | D194: -3.08459447 | E194: -2.935109909 | F194: 0.9486057504 | K194: =K193+Calcs!B$12 -> 5.970589023 | L194: 1.102348979 | M194: 1.04892732 | N194: -0.339005529
C195: =C194+Calcs!B$12 -> 6.001848652 | D195: =a*SIN(n*Q) -> -2.932855235 | E195: -2.817550581 | F195: 0.8142779314 | K195: =K194+Calcs!B$12 -> 6.001848652 | L195: =aa*COS(nn*QQ) -> 1.508023107 | M195: 1.448735462 | N195: -0.4186875376
C196: =C195+Calcs!B$12 -> 6.03310828 | D196: -2.735321604 | E196: -2.650234945 | F196: 0.6769335368 | K196: =K195+Calcs!B$12 -> 6.03310828 | L196: 1.890150555 | M196: =L196*COS(K196) -> 1.831354326 | N196: =L196*SIN(K196) -> -0.4677717963
C197: =C196+Calcs!B$12 -> 6.064367908 | D197: -2.495077923 | E197: -2.435582404 | F197: 0.5416199713 | K197: =K196+Calcs!B$12 -> 6.064367908 | L197: 2.242764681 | M197: 2.189285611 | N197: -0.4868489802
C198: =C197+Calcs!B$12 -> 6.095627537 | D198: -2.21587542 | E198: -2.1770146 | F198: 0.4131722511 | K198: =K197+Calcs!B$12 -> 6.095627537 | L198: 2.560359673 | M198: 2.515457475 | N198: -0.4774048037
C199: =C198+Calcs!B$12 -> 6.126887165 | D199: -1.90207364 | E199: -1.878887915 | F199: 0.2960816294 | K199: =K198+Calcs!B$12 -> 6.126887165 | L199: 2.837976517 | M199: 2.80338241 | N199: -0.4417666561
C200: =C199+Calcs!B$12 -> 6.158146794 | D200: -1.558572367 | E200: -1.546404382 | F200: 0.194374152 | K200: =K199+Calcs!B$12 -> 6.158146794 | L200: 3.071280429 | M200: 3.047302527 | N200: -0.3830284314
C201: =C200+Calcs!B$12 -> 6.189406422 | D201: -1.190735124 | E201: -1.185503013 | F201: 0.1115022107 | K201: =K200+Calcs!B$12 -> 6.189406422 | L201: 3.256628537 | M201: 3.242318853 | N201: -0.3049555471
... 3 more rows

Sheet Defining Function
A1: Defining a Function in Excel
A3: Computers have very specific rules you must follow when defining a function. If you don't, the program will either not work at all or will work incorrectly.
A5: 1. The Variable used should be the one named in the instruction, usually x, though sometimes y, t, Q (for an angle theta),
A6: or even x and y (for a function of two variables).
A8: 2. Order of Operations: There five arithmetic operations, addition (+), subtraction (-), multiplication (*), division (/), and exponentiation or power (^). When computers see any of these operation symbols, they perform the indicated steps in a very particular order. First, the power is done. Second, products and quotients of adjacent terms is done. Third, and last, sums and differences of adjacent terms are done. So, in 10*x^3 + 5*x – 7, say with x = 2, the first pass only calculates 2^3 and ignores the multiplications and the sums and differences to calculate 2^3 = 8. The second pass looks at 10*8 + 5*2 – 7 and only does the multiplications, so it produces 80 + 10 - 7. The third pass looks at the +’s and –‘s to produce 80 + 10 – 7 = 83.
A10: 3. Parentheses If you need an operation involving more than two adjacent terms, as in Ö4^3 + 6^2, the computer would take the square root of 4 to produce 2^3 + 6^2; it would then cube the 2 and square the 6 to produce 8 + 36; and finally it would add the 8 and the 36 to get 44. If you actually wanted the square root of the entire expression, you would need to use parentheses, as in Ö(4^3 + 6^2) to tell the computer to do all the operations inside the parentheses before taking the square root. Therefore, it would calculate (4^3 + 6^2) = 64 + 36 = 100 and then take the square root of Ö100 = 10.
A12: 4. Built-In Functions Computer programs have built-in functions for most common algebraic functions. In Excel, the square root function is denoted by SQRT(…), so SQRT(100) = 10. Alternatively, you could enter it as 100^.5 or 100^(1/2); notice that parentheses are needed to have the ½ done first. The common trig functions are SIN (…), COS (…), and TAN (…), where the arguments are automatically interpreted as being in radians, not degrees. The logarithm to the base 10 is represented by LOG (…) and the logarithm with the base e, known as the natural logarithm, is LN (…). The corresponding exponential function with base e is EXP (x). If x is the variable, then each of these would be SQRT (x), SIN (x), COS (x), TAN (x), LOG (x) (for log with base 10 ), LN (x) (for log with base e ), and EXP (x).
